Cogmind - Beta 11 X7 *** ADVENTURER MODE // 2021.08.26 @ 15:27:32 Player: nalzok Result: Smashed by cave-in Performance ------------- Evolutions (5) 2500 Regions Visited (18) 3600 Robots Destroyed (159) 795 Value Destroyed (6833) 6833 Prototype IDs (52) 1040 Alien Tech Used (1) 200 Bonus (2490) 2490 TOTAL SCORE: 17458 Bonus ------- High Alert Combat Kills 215 Follower Combat Kills 1003 Entered Garrisons 400 Used RIF Installer 1000 Aligned with FarCom 300 Met Imprinter 300 Met Zhirov 300 Friendly Fire -1028 Cogmind --------- Core Integrity 0/1000 Matter 189/300 Energy 385/390 System Corruption 41% Temperature Cool (3) Movement Walking (360) Ox3 Location -5/Zhirov Parts ------- > --- POWER (2) -------- Light Angular Momentum Engine Heavy Antimatter Reactor > --- PROPULSION (4) --- Carbon-fiber Leg Flexi-carbon Leg > --- UTILITY (9) ------ Advanced Power Amplifier Advanced Heat Sink Huge Storage Unit Experimental Optical Array Experimental Core Analyzer Experimental Utility Shielding Relay Coupler [Heavy] (5) Relay Coupler [Programmer] (28) > --- WEAPON (2) ------- Long-range Proton Cannon Longsword +1 > --- INVENTORY (25) --- Reinforced Deuterium Engine Advanced Cooling System High-capacity Storage Unit Humpback Particle Accelerator Point Defense System Advanced Hacking Suite Relay Coupler [NC] (39) Relay Coupler [NC] (34) Relay Coupler [NC] (37) Relay Coupler [Programmer] (91) Relay Coupler [Programmer] (102) Relay Coupler [Programmer] (108) Hacking Drone Bay (1/1) Transdimensional Reconstructor Improved Lightning Gun Coil Gun Hypervelocity Gauss Rifle Heavy Machine Gun Precision Grenade Launcher Precision Grenade Launcher Rocket Array Improved Remote Datajack Peak State ------------ > --- POWER ------------ Light Angular Momentum Engine Neutrino Core > --- PROPULSION ------- Armored Huge Wheel Armored Huge Wheel > --- UTILITY ---------- Huge Storage Unit Experimental Optical Array Active Sensor Suite Experimental Core Analyzer Makeshift Kinetic Plating Relay Coupler [Sentry] Relay Coupler [Programmer] > --- WEAPON ----------- Bore Cannon Remote Datajack > --- INVENTORY -------- Light Angular Momentum Engine Antimatter Reactor Armored Huge Wheel Advanced Heat Sink Medium Insulated Plating Advanced Shield Generator Relay Coupler [NC] Relay Coupler [NC] Relay Coupler [NC] Relay Coupler [Grunt] Relay Coupler [Heavy] Relay Coupler [Programmer] Relay Coupler [Programmer] Relay Coupler [Programmer] Hacking Drone Bay Wave Gun Coil Gun Hypervelocity Gauss Rifle Heavy Machine Gun Heavy Machine Gun Precision Grenade Launcher Precision Grenade Launcher Rocket Array Longsword +1 [Rating: 109] Favorites ----------- Power Micro Nuclear Core Engine Light Angular Momentum Engine Power Core Micro Nuclear Core Reactor Antimatter Reactor Propulsion Armored Huge Wheel Leg Carbon-fiber Leg Wheel Armored Huge Wheel Utility Humpback Device Structural Scanner Storage Humpback Processor Experimental Core Analyzer Hackware Relay Coupler [Programmer] Protection Layered Light Armor Plating Weapon Hypervelocity Gauss Rifle Energy Gun Electrolaser Energy Cannon Advanced Beam Cannon Ballistic Gun Hypervelocity Gauss Rifle Ballistic Cannon Gauss Cannon Launcher Precision Grenade Launcher Special Weapon Remote Datajack Impact Weapon Powered Hammer Slashing Weapon Longsword +1 Build | -11 -10 -10 -10 -9 -8 -7 -7 -7 -7 -6 -6 -6 -6 -6 -5 -5 -5 -5 ------- Run | Scr Mat Min Exi Min Mat Fac Low Low Zio Pro Fac Gar Fac Gar Fac Upp Upp Zhi Slots Evolved 10 | . . . . . 4 2 . . . . 2 . . . 2 . . . Power 1 | . . . . . . . . . . . 1 . . . . . . . Propulsion 2 | . . . . . . 2 . . . . . . . . . . . . Utility 7 | . . . . . 4 . . . . . 1 . . . 2 . . . Weapon . | . . . . . . . . . . . . . . . . . . . Parts Attached 277 | 5 2 1 1 1 14 50 6 3 23 . 7 25 27 24 47 7 21 13 Power 34 | 1 . . . . 1 6 1 . 1 . 3 4 4 . 7 . 5 1 Engine 12 | 1 . . . . . 1 . . 1 . . 1 3 . 3 . 2 . Core 20 | . . . . . 1 5 1 . . . 3 3 1 . 3 . 3 . Reactor 2 | . . . . . . . . . . . . . . . 1 . . 1 Propulsion 37 | 2 . . . . 6 16 . 1 1 . 1 2 1 . 3 . 4 . Treads . | . . . . . . . . . . . . . . . . . . . Leg 6 | . . . . . 2 . . . . . . . . . . . 4 . Wheel 31 | 2 . . . . 4 16 . 1 1 . 1 2 1 . 3 . . . Hover . | . . . . . . . . . . . . . . . . . . . Flight . | . . . . . . . . . . . . . . . . . . . Utility 98 | 1 2 . 1 . 5 13 2 1 15 . 1 7 6 12 19 3 4 6 Device 34 | . 1 . . . 2 6 . 1 6 . . 2 1 6 4 2 1 2 Storage 10 | 1 1 . 1 . . 2 1 . . . . 1 . 1 1 . 1 . Processor 12 | . . . . . 3 1 . . 5 . 1 . 1 . . . 1 . Hackware 18 | . . . . . . . . . 1 . . 3 4 4 6 . . . Protection 24 | . . . . . . 4 1 . 3 . . 1 . 1 8 1 1 4 Artifact . | . . . . . . . . . . . . . . . . . . . Weapon 108 | 1 . 1 . 1 2 15 3 1 6 . 2 12 16 12 18 4 8 6 Energy Gun 22 | . . 1 . 1 2 8 1 1 1 . . 1 1 . . 2 3 . Energy Cannon 3 | . . . . . . 1 . . . . . . . . . . 1 1 Ballistic Gun 36 | 1 . . . . . 3 1 . 2 . 1 7 6 5 6 . 3 1 Ballistic Cannon 8 | . . . . . . . 1 . 1 . . . 1 . 3 1 . 1 Launcher 9 | . . . . . . 1 . . 2 . . . 1 2 1 . 1 1 Special Weapon 17 | . . . . . . . . . . . . 3 5 4 4 1 . . Impact Weapon 2 | . . . . . . 2 . . . . . . . . . . . . Slashing Weapon 11 | . . . . . . . . . . . 1 1 2 1 4 . . 2 Piercing Weapon . | . . . . . . . . . . . . . . . . . . . Special Melee Weapon . | . . . . . . . . . . . . . . . . . . . Unidentified Prototypes 18 | . . . . . . 4 . . 7 . . 1 2 . 1 . . 3 Corrupted Parts 7 | . . . . . . 1 . . . . . . . . . . 6 . System Corruption 24 | . . . . . . 1 . . . . . . . . . . 23 . Parts Lost 44 | . . . . . . 8 1 2 . . . 2 3 1 8 5 11 3 Power 6 | . . . . . . . 1 . . . . . 2 . 1 . 2 . Propulsion 9 | . . . . . . 2 . 1 . . . . . . 2 . 3 1 Utility 18 | . . . . . . 4 . . . . . 1 1 1 4 3 3 1 Weapon 11 | . . . . . . 2 . 1 . . . 1 . . 1 2 3 1 Highest Loss Streak 5 | . . . . . . 5 1 1 . . . 1 3 1 2 3 4 3 Average Slot Usage (%) 80 | . 80 100 93 85 84 88 77 75 75 76 80 79 79 79 75 86 74 82 Engine 4 | . 14 14 14 14 3 . . . 3 7 5 . 10 13 4 . 2 5 Core 5 | . . . . . 5 6 7 7 3 . 6 12 1 . 4 5 4 1 Leg 1 | . . . . . . . . . . . . . . . . . 5 14 Wheel 13 | . 28 28 28 28 17 24 15 14 15 15 13 13 12 13 9 11 2 . Device 9 | . 9 14 7 . 9 11 15 15 15 15 13 10 . 5 4 7 8 9 Storage 6 | . 14 14 14 14 9 7 12 7 7 7 6 5 6 5 4 5 4 5 Processor 13 | . . . . . 20 16 7 7 8 15 20 17 19 13 11 11 13 13 Hackware 5 | . . . . . . . . . . . . 2 12 12 11 17 13 11 Protection 2 | . . . . . . 2 3 7 4 . . . . . 7 6 2 5 Energy Gun 3 | . . 14 14 18 18 7 . 2 5 . . . . . . 8 2 . Ballistic Gun 5 | . 14 14 14 9 . 1 7 7 5 15 6 9 5 7 2 . 2 2 Naked Turns . | . . . . . . . . . . . . . . . . . . . Heaviest Build 300 | 10 26 28 207 207 215 218 300 224 227 213 224 229 239 241 243 135 133 132 Greatest Support 64 | 32 32 32 32 32 32 64 56 56 56 56 56 56 56 56 56 56 56 50 Greatest Overweight (x) 39 | . . . 6 6 6 6 5 7 4 3 3 4 4 4 4 2 39 3 Average Overweight (x) 3 | . . . 1 6 6 2 3 3 3 3 3 3 3 3 2 2 3 2 Largest Inventory Capacity 35 | 8 15 15 35 35 35 35 35 35 35 35 35 35 35 35 35 25 25 25 Average Capacity 31 | 6 12 15 23 35 35 31 32 35 35 35 35 34 35 34 26 25 23 25 Most Carried 35 | 5 11 14 27 27 35 35 35 35 35 35 35 35 35 35 35 24 25 25 Average Carried 29 | 2 7 13 17 27 33 31 31 34 34 35 34 33 34 32 24 21 21 24 Final Capacity 35 | 8 15 15 35 35 35 25 35 35 35 35 35 35 35 35 25 25 25 25 Final Carried 35 | 5 11 14 27 27 35 25 35 33 35 35 35 35 35 35 24 21 25 24 Class Distribution -------------------- 38% | Bothacker-Mutant 25% | Hauler-Mutant 15% | Hauler-Skirmisher 5% | Mutant 4% | Assassin 3% | Hauler-Assassin 3% | Bothacker-Skirmisher Dominant Class ---------------- Mutant | -10/Materials Mutant | -10/Mines Mutant | -10/Exiles Hauler-Mutant | -9/Mines Hauler-Skirmisher | -8/Materials Hauler-Skirmisher | -7/Factory Hauler-Mutant | -7/Lower Caves Hauler-Mutant | -7/Lower Caves Hauler-Mutant | -7/Zion Hauler-Mutant | -6/Proximity Caves Hauler-Assassin | -6/Factory Hauler-Skirmisher | -6/Garrison Bothacker-Mutant | -6/Factory Bothacker-Mutant | -6/Garrison Bothacker-Mutant | -5/Factory Bothacker-Mutant | -5/Upper Caves Bothacker-Mutant | -5/Upper Caves Bothacker-Mutant | -5/Zhirov Resources | -11 -10 -10 -10 -9 -8 -7 -7 -7 -7 -6 -6 -6 -6 -6 -5 -5 -5 -5 ----------- Run | Scr Mat Min Exi Min Mat Fac Low Low Zio Pro Fac Gar Fac Gar Fac Upp Upp Zhi Matter Collected 5698 | 176 84 41 40 . 160 712 352 184 119 188 116 671 462 629 519 377 624 244 Remotely . | . . . . . . . . . . . . . . . . . . . Salvage Created 7939 | . 69 60 . . 565 3086 325 135 . 125 43 658 395 312 425 134 1093 514 Parts 311 | . 3 1 . . 17 126 16 7 . 6 4 34 15 15 14 3 41 9 Haulers Intercepted 8 | . . . . . 2 5 . . . . . . . . 1 . . . Recyclers Shooed 6 | . . . . . 1 4 . . . . . . 1 . . . . . Parts Field Recycled . | . . . . . . . . . . . . . . . . . . . Retrieved Matter . | . . . . . . . . . . . . . . . . . . . Parts Self-Destructed 74 | . . . . . . . 18 6 . 6 . . . . . 3 33 8 Prevented 13 | . . . . . . . . . . 2 . . . . . . 11 . Kills | -11 -10 -10 -10 -9 -8 -7 -7 -7 -7 -6 -6 -6 -6 -6 -5 -5 -5 -5 ------- Run | Scr Mat Min Exi Min Mat Fac Low Low Zio Pro Fac Gar Fac Gar Fac Upp Upp Zhi Combat Hostiles Destroyed 108 | . 1 1 . . 1 23 11 3 . 4 1 16 7 10 5 3 22 . Melee 2 | . . . . . . . . . . . 1 . . . 1 . . . Guns 57 | . 1 1 . . 1 14 5 1 . 4 . 16 5 2 . 2 5 . Cannons 22 | . . . . . . 4 6 2 . . . . 2 . 4 . 4 . AOE 20 | . . . . . . 2 . . . . . . . 8 . 1 9 . Classes Destroyed 19 | . 2 . . . 3 6 1 1 . . . . . . 2 . 4 . Worker 7 | . . . . . . 6 . . . . . . . . 1 . . . Builder 7 | . . . . . . 7 . . . . . . . . . . . . Tunneler 1 | . . . . . . . . . . . . . . . 1 . . . Hauler 8 | . . . . . 2 5 . . . . . . . . 1 . . . Recycler 21 | . . . . . 4 17 . . . . . . . . . . . . Minesweeper 1 | . . . . . . . . . . . . . . . . . 1 . Operator 1 | . . . . . . 1 . . . . . . . . . . . . Watcher 5 | . 1 . . . 1 3 . . . . . . . . . . . . Swarmer 23 | . . . . . . . 5 . . 3 . 8 1 3 . 3 . . Grunt 51 | . 1 1 . . . 14 3 . . . . 6 6 6 . . 14 . Brawler 3 | . . . . . . 1 . . . . . . . . . . 2 . Duelist 1 | . . . . . . . . . . . . . . . . . 1 . Protector 1 | . . . . . . . . . . . . . . . . . 1 . Sentry 9 | . . . . . 1 2 1 1 . 1 . . . 1 . . 2 . Specialist 2 | . . . . . . . . . . . . . . . 2 . . . Hunter 6 | . . . . . . 2 . . . . . 2 . . 1 . 1 . Programmer 10 | . . . . . . 4 2 1 . . 1 . . . 2 . . . Behemoth 1 | . . . . . . . . . . . . . . . . . 1 . Mutant 1 | . . . . . . . . 1 . . . . . . . . . . Best Kill Streak 11 | . 1 1 . . 3 11 5 2 . 3 1 4 3 9 3 2 6 . Combat Bots Only 9 | . 1 1 . . 1 5 5 2 . 3 1 4 3 9 2 2 6 . Max Kills in Single Turn 3 | . 1 1 . . 1 2 1 1 . 2 1 2 1 3 1 1 2 . Gunslinging 1 | . . . . . . . . . . . . 1 . . . . . . Exploded 3 | . . . . . . 1 . . . . . . . 3 . 1 2 . Melee 1 | . . . . . . . . . . . 1 . . . 1 . . . Uniques/NPCs Destroyed . | . . . . . . . . . . . . . . . . . . . Combat | -11 -10 -10 -10 -9 -8 -7 -7 -7 -7 -6 -6 -6 -6 -6 -5 -5 -5 -5 -------- Run | Scr Mat Min Exi Min Mat Fac Low Low Zio Pro Fac Gar Fac Gar Fac Upp Upp Zhi Damage Taken 10224 | . . . . . 20 1372 570 472 . 389 36 1265 418 706 1985 618 1401 972 Core 1763 | . . . . . . 282 114 64 . 33 12 99 20 137 390 63 328 221 Absorbed by Shields 748 | . . . . . . . . . . . . 40 . . 289 22 397 . Core Remaining (%) 79 | 100 . . . 100 100 . . . . 29 . . . 68 . . . . Volleys Fired 478 | . 6 1 . . 14 136 31 21 . 6 . 57 30 37 36 18 65 20 Largest 2 | . 1 2 . . 2 2 2 2 . 2 . 2 2 2 2 2 2 2 Hottest 150 | . 20 60 . . 126 131 76 91 . 57 . 63 117 69 90 120 150 110 Shots Fired 804 | . 6 2 . . 28 266 62 39 . 12 . 104 47 50 55 20 90 23 Gun 567 | . 6 2 . . 28 190 30 35 . 12 . 97 31 28 20 18 51 19 Cannon 161 | . . . . . . 76 32 4 . . . . 4 . 19 . 23 3 Launcher 26 | . . . . . . . . . . . . . 1 7 . 1 16 1 Special 50 | . . . . . . . . . . . . 7 11 15 16 1 . . Kinetic 366 | . 6 1 . . . 17 62 26 . 12 . 97 32 28 39 1 23 22 Thermal 238 | . . . . . 23 181 . 13 . . . . . . . . 21 . Explosive 26 | . . . . . . . . . . . . . 1 7 . 1 16 1 Electromagnetic 124 | . . 1 . . 5 68 . . . . . . 3 . . 17 30 . Robot Hit Streak 49 | . 6 8 . . 13 38 11 20 . 4 . 49 14 17 21 7 29 15 Robot Miss Streak 5 | . . . . . 2 2 2 1 . 5 . 2 1 1 2 3 2 2 Penetration Max 2 | . . . . . . . . . . . . 1 2 . . . . . Secondary Targets 6 | . . . . . . 3 . . . . . 3 . . . . . . Max Gunslinging Chain 1 | . . . . . . 1 . . . . . 1 . . . . . . Shots Hit Robots 666 | . 6 2 . . 17 218 45 34 . 6 3 85 41 36 55 13 76 29 Core Hits 339 | . 3 1 . . 10 88 17 7 . 10 1 47 23 28 13 7 59 25 Critical Kills 13 | . . . . . . 1 . . . . . 1 3 2 3 . 3 . Critical Parts Destroyed 23 | . . . . . . . 1 . . . . . 6 3 11 . 1 1 Critical Strikes 49 | . . . . . . 5 5 2 . . . 1 9 5 14 . 4 4 Burn 5 | . . . . . . 4 . 1 . . . . . . . . . . Meltdown 1 | . . . . . . 1 . . . . . . . . . . . . Destroy 38 | . . . . . . . 1 . . . . 1 9 5 14 . 4 4 Blast 5 | . . . . . . . 4 1 . . . . . . . . . . Melee Attacks 67 | . . . . . . 19 . . . . 13 2 4 2 17 . . 10 Impact 19 | . . . . . . 19 . . . . . . . . . . . . Slashing 48 | . . . . . . . . . . . 13 2 4 2 17 . . 10 Piercing . | . . . . . . . . . . . . . . . . . . . Sneak Attacks 9 | . . . . . . 5 . . . . . . . . 4 . . . Combat Hostiles . | . . . . . . . . . . . . . . . . . . . Follow-up Attacks . | . . . . . . . . . . . . . . . . . . . Damage Inflicted 17759 | . 79 26 . . 284 4762 1048 702 . 142 115 1601 673 1472 1408 305 3301 1841 Guns 7656 | . 79 26 . . 256 2506 477 593 . 142 . 1601 496 240 255 262 605 118 Cannons 3067 | . . . . . . 1161 571 109 . . . . 84 . 368 . 648 126 Explosions 4255 | . . . . . 28 305 . . . . . . 85 1232 . 43 2048 514 Melee 2745 | . . . . . . 790 . . . . 115 . . . 757 . . 1083 Ramming 36 | . . . . . . . . . . . . . 8 . 28 . . . Kinetic 5429 | . 79 14 . . . 253 1048 512 . 142 . 1601 526 240 623 . 147 244 Thermal 3921 | . . . . . 225 3052 . 190 . . . . 85 . . . 369 . Explosive 3837 | . . . . . . . . . . . . . . 1232 . 43 2048 514 Electromagnetic 1791 | . . 12 . . 59 667 . . . . . . 54 . . 262 737 . Impact 790 | . . . . . . 790 . . . . . . . . . . . . Slashing 1955 | . . . . . . . . . . . 115 . . . 757 . . 1083 Piercing . | . . . . . . . . . . . . . . . . . . . Highest Corruption 41 | . . . . . . 9 9 9 9 . . . 3 3 13 13 38 41 Average Corruption 13 | . . . . . . 6 9 9 9 . . . 3 3 10 13 28 39 Corruption Purged . | . . . . . . . . . . . . . . . . . . . Effects 398 | . . . . . . 83 38 28 2 . . . 4 27 39 22 99 56 Message Errors 97 | . . . . . . 20 9 9 1 . . . 1 9 6 6 22 14 Matter Fused 96 | . . . . . . 23 9 6 . . . . 1 11 10 7 16 13 Heat Flow Errors 52 | . . . . . . 6 7 3 1 . . . . 4 9 4 14 4 Energy Discharges 50 | . . . . . . 8 6 5 . . . . 2 . 2 2 17 8 Parts Rejected 2 | . . . . . . 1 . . . . . . . . 1 . . . Data Loss (minor) 51 | . . . . . . 16 2 1 . . . . . 3 7 2 12 8 Data Loss (major) 18 | . . . . . . 3 3 3 . . . . . . 1 1 6 1 Misfires 12 | . . . . . . 4 1 1 . . . . . . . . 3 3 Alerts 5 | . . . . . . . . . . . . . . . 1 . 3 1 Misdirections 6 | . . . . . . . . . . . . . . . 2 . 3 1 Weapon Failures 9 | . . . . . . 2 1 . . . . . . . . . 3 3 Overload Shots . | . . . . . . . . . . . . . . . . . . . Overflow Damage 1063 | . . . . . . 378 3 . . . 16 . . 15 244 . 14 393 Projectiles 62 | . . . . . . 43 3 . . . . . . . 15 . 1 . Explosions 31 | . . . . . . 3 . . . . . . . 15 . . 13 . Melee 970 | . . . . . . 332 . . . . 16 . . . 229 . . 393 Knockbacks 13 | . . . . . . 2 4 . . . . . 1 . 4 . . 2 Impact 2 | . . . . . . 2 . . . . . . . . . . . . Kinetic 10 | . . . . . . . 4 . . . . . 1 . 3 . . 2 Secondary 1 | . . . . . . . . . . . . . . . 1 . . . Self-Inflicted Damage 125 | . . . . . 8 . . . . . . . 4 16 13 . 84 . Shots 4 | . . . . . 1 . . . . . . . . 1 . . 2 . Rammed 5 | . . . . . . . . . . . . . 1 . 4 . . . Targets Rammed 5 | . . . . . . . . . . . . . 1 . 4 . . . Kicked . | . . . . . . . . . . . . . . . . . . . Crushed . | . . . . . . . . . . . . . . . . . . . Highest Temperature 398 | . . . . . 114 398 276 312 107 . . 20 114 207 337 349 293 211 Average Temperature 92 | . . . . . 43 103 121 102 63 . . 8 22 49 89 112 95 90 Received Heat Transfer 2778 | . . . . . 9 669 189 206 . 18 . 273 120 327 225 171 517 54 Effects 12 | . . . . . . 1 . 2 . . . . . 1 1 . 7 . Energy Bleed 3 | . . . . . . 1 . . . . . . . 1 . . 1 . Interference 8 | . . . . . . . . 2 . . . . . . . . 6 . Damage (minor) 1 | . . . . . . . . . . . . . . . 1 . . . Siege Activations . | . . . . . . . . . . . . . . . . . . . Robots Corrupted 4 | . . . . . . . . . . . . . . . . . 4 . Combat Hostiles 4 | . . . . . . . . . . . . . . . . . 4 . Parts Fried 6 | . . . . . . 5 . . . . . . . . . . 1 . Impact Corruptions 15 | . . . . . . 15 . . . . . . . . . . . . Robots Melted 3 | . . . . . . 3 . . . . . . . . . . . . Combat Hostiles 2 | . . . . . . 2 . . . . . . . . . . . . Parts Melted 25 | . . . . . 1 23 . . . . . . . . . . 1 . Heat Transferred 7504 | . . . . . 494 5800 . 481 . . . . 100 . . . 629 . Parts Sabotaged . | . . . . . . . . . . . . . . . . . . . Parts Stolen . | . . . . . . . . . . . . . . . . . . . Parts Stripped . | . . . . . . . . . . . . . . . . . . . Power Chain Reactions 5 | . . . . . 1 3 . . . . . . 1 . . . . . Missiles Intercepted . | . . . . . . . . . . . . . . . . . . . Alert | -11 -10 -10 -10 -9 -8 -7 -7 -7 -7 -6 -6 -6 -6 -6 -5 -5 -5 -5 ------- Run | Scr Mat Min Exi Min Mat Fac Low Low Zio Pro Fac Gar Fac Gar Fac Upp Upp Zhi Peak Influence 788 | . 57 31 . . 91 254 . . . . 68 788 519 776 513 . . . Initial 358 | . . 1 . . . . . . . . 49 31 358 308 352 . . . Average 266 | . 22 29 . . 36 64 . . . . 38 466 251 623 323 . . . Maximum Alert Level 3 | . . . . . . 1 . . . . . 3 2 3 2 . . . Low Security (%) 52 | 100 100 100 . 100 100 95 . . . . 100 22 37 . 19 . . . Level 1 18 | . . . . . . 4 . . . . . 13 32 13 58 . . . Level 2 21 | . . . . . . . . . . . . 49 29 45 21 . . . Level 3 8 | . . . . . . . . . . . . 15 . 41 . . . . Level 4 . | . . . . . . . . . . . . . . . . . . . Level 5 . | . . . . . . . . . . . . . . . . . . . High Security . | . . . . . . . . . . . . . . . . . . . Max Security . | . . . . . . . . . . . . . . . . . . . Squads Dispatched 34 | . 2 . . . . 9 . . . . 3 . 5 . 14 . 1 . Investigation 8 | . 2 . . . . 1 . . . . 1 . 1 . 3 . . . Extermination 9 | . . . . . . 3 . . . . 2 . 1 . 3 . . . Reinforcement 15 | . . . . . . 5 . . . . . . 2 . 8 . . . Assault 2 | . . . . . . . . . . . . . 1 . . . 1 . Garrison . | . . . . . . . . . . . . . . . . . . . Intercept . | . . . . . . . . . . . . . . . . . . . Construction Impeded 2 | . . . . . . 1 . . . . . . . . 1 . . . Haulers Reinforced 3 | . . . . . . 2 . . . . . . . . 1 . . . Active Scanning Responses 3 | . . . . . . . . . . . . . . . 3 . . . Cargo Convoy Interrupts 2 | . . . . . . . . . . . . . 1 . 1 . . . Alert ID Control Effect 12 | . . . . . . . . . . . . . . 3 6 3 . . Stealth | -11 -10 -10 -10 -9 -8 -7 -7 -7 -7 -6 -6 -6 -6 -6 -5 -5 -5 -5 --------- Run | Scr Mat Min Exi Min Mat Fac Low Low Zio Pro Fac Gar Fac Gar Fac Upp Upp Zhi Distress Signals 7 | . . . . . 1 3 . . . . . . . . 3 . . . Communications Jammed . | . . . . . . . . . . . . . . . . . . . Distress Signals . | . . . . . . . . . . . . . . . . . . . Times Spotted 212 | . 6 3 . . 6 41 11 4 . 6 3 24 24 22 24 8 27 3 Peak Tracking Total 8 | . 4 2 . . 2 6 3 1 . 3 1 4 4 8 5 4 7 3 Tactical Retreats 16 | . . . . . . 2 1 1 . . . . 2 1 3 1 5 . Traps | -11 -10 -10 -10 -9 -8 -7 -7 -7 -7 -6 -6 -6 -6 -6 -5 -5 -5 -5 ------- Run | Scr Mat Min Exi Min Mat Fac Low Low Zio Pro Fac Gar Fac Gar Fac Upp Upp Zhi Traps Triggered 29 | . . . . . . 1 1 . . . 1 12 4 8 1 . 1 . Indirectly . | . . . . . . . . . . . . . . . . . . . Trap Hack Attempts . | . . . . . . . . . . . . . . . . . . . Triggered . | . . . . . . . . . . . . . . . . . . . Disarmed . | . . . . . . . . . . . . . . . . . . . Reprogrammed . | . . . . . . . . . . . . . . . . . . . Reused . | . . . . . . . . . . . . . . . . . . . Traps Extracted . | . . . . . . . . . . . . . . . . . . . Installed . | . . . . . . . . . . . . . . . . . . . Triggered 7 | . . . . . . . 1 . . 2 . . . . 2 . 2 . Machines | -11 -10 -10 -10 -9 -8 -7 -7 -7 -7 -6 -6 -6 -6 -6 -5 -5 -5 -5 ---------- Run | Scr Mat Min Exi Min Mat Fac Low Low Zio Pro Fac Gar Fac Gar Fac Upp Upp Zhi Machines Disabled 14 | . . . . . . 1 . 1 . . . 3 1 3 4 . 1 . Max in Single Turn 1 | . . . . . . 1 . 1 . . . 1 1 1 . . 1 . Garrison Access 2 | . . . . . . 1 . . . . . . . . 1 . . . Garrison Relay 6 | . . . . . . . . . . . . 3 . 3 . . . . Machines Sabotaged . | . . . . . . . . . . . . . . . . . . . Garrisons Compromised 1 | . . . . . . . . . . . . . . . 1 . . . Overloaded Fab Kills . | . . . . . . . . . . . . . . . . . . . Fab Network Shutdowns . | . . . . . . . . . . . . . . . . . . . Hacking | -11 -10 -10 -10 -9 -8 -7 -7 -7 -7 -6 -6 -6 -6 -6 -5 -5 -5 -5 --------- Run | Scr Mat Min Exi Min Mat Fac Low Low Zio Pro Fac Gar Fac Gar Fac Upp Upp Zhi Machines Accessed 37 | . 1 . 1 . 2 4 4 . . . 5 . 6 . 6 . . 8 Terminals 12 | . 1 . . . 2 1 1 . . . . . 3 . 4 . . . Fabricators 5 | . . . . . . 2 . . . . 2 . . . 1 . . . Repair Stations 2 | . . . . . . . . . . . 1 . 1 . . . . . Recycling Units . | . . . . . . . . . . . . . . . . . . . Scanalyzers 2 | . . . . . . . . . . . 1 . 1 . . . . . Garrison Access 4 | . . . . . . 1 . . . . 1 . 1 . 1 . . . Total Hacks 125 | . 4 . 1 . 9 9 6 . . . 22 . 14 . 13 . . 47 Successful 93 | . 2 . 1 . 3 6 6 . . . 13 . 10 . 5 . . 47 Failed 32 | . 2 . . . 6 3 . . . . 9 . 4 . 8 . . . Catastrophic 4 | . . . . . 1 . . . . . . . . . 3 . . . Database Lockouts . | . . . . . . . . . . . . . . . . . . . Manual 24 | . 4 . 1 . 6 . . . 1 . . . 3 . 9 . . . Terminals 32 | . 4 . . . 9 2 1 . . . . . 7 . 9 . . . Fabricators 10 | . . . . . . 5 . . . . 2 . . . 3 . . . Repair Stations 7 | . . . . . . . . . . . 5 . 2 . . . . . Recycling Units . | . . . . . . . . . . . . . . . . . . . Scanalyzers 17 | . . . . . . . . . . . 13 . 4 . . . . . Garrison Access 6 | . . . . . . 2 . . . . 2 . 1 . 1 . . . Terminal Hacks 65 | . 2 . 1 . 3 . 6 . . . . . 5 . 1 . . 47 Record 39 | . . . . . . . 4 . . . . . . . . . . 35 Part Schematic 8 | . 1 . . . . . . . . . . . 3 . . . . 4 Robot Analysis 4 | . . . . . . . . . . . . . . . . . . 4 Prototype ID Bank 5 | . . . . . 1 . . . . . . . . . . . . 4 Open Door 3 | . . . . . . . 2 . . . . . 1 . . . . . Level Access Points 1 | . . . . . . . . . . . . . 1 . . . . . Branch Access Points 1 | . . . . . 1 . . . . . . . . . . . . . Emergency Access Points 1 | . . . . . 1 . . . . . . . . . . . . . Fabricator Index 1 | . . . . . . . . . . . . . . . 1 . . . Unreport Threat 1 | . 1 . . . . . . . . . . . . . . . . . EX-Prototype ID Bank 1 | . . . 1 . . . . . . . . . . . . . . . Fabricator Hacks 8 | . . . . . . 5 . . . . 1 . . . 2 . . . Load Schematic 3 | . . . . . . 2 . . . . . . . . 1 . . . Build 5 | . . . . . . 3 . . . . 1 . . . 1 . . . Repair Station Hacks 4 | . . . . . . . . . . . 2 . 2 . . . . . Scan Component 2 | . . . . . . . . . . . 1 . 1 . . . . . Repair 2 | . . . . . . . . . . . 1 . 1 . . . . . Recycling Unit Hacks . | . . . . . . . . . . . . . . . . . . . Scanalyzer 11 | . . . . . . . . . . . 9 . 2 . . . . . Insert Component 5 | . . . . . . . . . . . 4 . 1 . . . . . Analyze 6 | . . . . . . . . . . . 5 . 1 . . . . . Garrison Access Hacks 4 | . . . . . . 1 . . . . 1 . 1 . 1 . . . Unlock Access 2 | . . . . . . . . . . . 1 . 1 . . . . . Seal Access 2 | . . . . . . 1 . . . . . . . . 1 . . . Unauthorized Hacks 1 | . . . . . . . . . . . . . . . 1 . . . Terminals 1 | . . . . . . . . . . . . . . . 1 . . . Track 1 | . . . . . . . . . . . . . . . 1 . . . Fabricators . | . . . . . . . . . . . . . . . . . . . Repair Stations . | . . . . . . . . . . . . . . . . . . . Recycling Units . | . . . . . . . . . . . . . . . . . . . Scanalyzers . | . . . . . . . . . . . . . . . . . . . Garrison Access . | . . . . . . . . . . . . . . . . . . . Data Cores Recovered . | . . . . . . . . . . . . . . . . . . . Used . | . . . . . . . . . . . . . . . . . . . Hacking Detections 21 | . 1 . . . 2 4 . . . . 4 . 5 . 5 . . . Full Trace Events 3 | . . . . . . 1 . . . . 1 . 1 . . . . . Feedback Events . | . . . . . . . . . . . . . . . . . . . Feedback Blocked . | . . . . . . . . . . . . . . . . . . . Robot Schematics Acquired . | . . . . . . . . . . . . . . . . . . . Robots Built . | . . . . . . . . . . . . . . . . . . . Matter . | . . . . . . . . . . . . . . . . . . . Time . | . . . . . . . . . . . . . . . . . . . Total Robot Build Rating . | . . . . . . . . . . . . . . . . . . . Part Schematics Acquired 10 | . 1 . . . . . . . . . 2 . 3 . . . . 4 Parts Built 6 | . . . . . . 3 . . . . 2 . . . 1 . . . Matter 664 | . . . . . . 372 . . . . 190 . . . 102 . . . Time 280 | . . . . . . 160 . . . . 95 . . . 25 . . . Total Part Build Rating 17 | . . . . . . 6 . . . . 10 . . . 1 . . . Parts Repaired 2 | . . . . . . . . . . . 1 . 1 . . . . . Time 44 | . . . . . . . . . . . 22 . 22 . . . . . Parts Recycled . | . . . . . . . . . . . . . . . . . . . Recycled Matter . | . . . . . . . . . . . . . . . . . . . Retrieved Matter . | . . . . . . . . . . . . . . . . . . . Retrieved Components . | . . . . . . . . . . . . . . . . . . . Parts Scanalyzed 4 | . . . . . . . . . . . 3 . 1 . . . . . Part Schematics Acquired 3 | . . . . . . . . . . . 2 . 1 . . . . . Parts Damaged . | . . . . . . . . . . . . . . . . . . . Bothacking | -11 -10 -10 -10 -9 -8 -7 -7 -7 -7 -6 -6 -6 -6 -6 -5 -5 -5 -5 ------------ Run | Scr Mat Min Exi Min Mat Fac Low Low Zio Pro Fac Gar Fac Gar Fac Upp Upp Zhi Used RIF Installer 2 | . . . . . . . . . . . . 1 . 1 . . . . Alert ID Control 1 | . . . . . . . . . . . . . . 1 . . . . Robots Hacked 34 | . . . . . . . . . . . . 5 7 8 13 1 . . Non-combat 5 | . . . . . . . . . . . . . 3 1 1 . . . Combat 29 | . . . . . . . . . . . . 5 4 7 12 1 . . Robot Hacks Applied 39 | . . . . . . . . . . . . 5 10 8 15 1 . . parse_system 5 | . . . . . . . . . . . . . 1 1 3 . . . find_fabricator 1 | . . . . . . . . . . . . . 1 . . . . . purge_threat 2 | . . . . . . . . . . . . . 2 . . . . . map_route 1 | . . . . . . . . . . . . . . . 1 . . . mark_security 1 | . . . . . . . . . . . . . . . 1 . . . reboot_propulsion 1 | . . . . . . . . . . . . . 1 . . . . . formatsys_high 28 | . . . . . . . . . . . . 5 5 7 10 1 . . Relay Couplers Released 22 | . . . . . . . . . . . . 12 . 10 . . . . Machine Destruction 22 | . . . . . . . . . . . . 12 . 10 . . . . Attached 17 | . . . . . . . . . . . . 3 4 4 6 . . . Robots Rewired 3 | . . . . . . . . 3 . . . . . . . . . . Allies Hacked . | . . . . . . . . . . . . . . . . . . . Hacks Repelled . | . . . . . . . . . . . . . . . . . . . Allies | -11 -10 -10 -10 -9 -8 -7 -7 -7 -7 -6 -6 -6 -6 -6 -5 -5 -5 -5 -------- Run | Scr Mat Min Exi Min Mat Fac Low Low Zio Pro Fac Gar Fac Gar Fac Upp Upp Zhi Total Allies 31 | . . . . . . . . 3 . . . 5 5 7 10 1 . . Largest Group 4 | . . . . . . . . 3 1 1 . 4 4 3 3 1 . . Highest-Rated Group 187 | . . . . . . . . 93 31 31 . 119 125 64 187 49 . . Highest-Rated Ally 129 | . . . . . . . . 31 31 31 . 32 41 32 129 49 . . Total Orders 25 | . . . . . . . . . 2 . . 2 7 8 6 . . . STAY 13 | . . . . . . . . . . . . 1 4 4 4 . . . FOLLOW 10 | . . . . . . . . . . . . 1 3 4 2 . . . EXPLORE 1 | . . . . . . . . . 1 . . . . . . . . . RETURN 1 | . . . . . . . . . 1 . . . . . . . . . Ally Attacks 155 | . . . . . . . . . . 5 . 29 49 28 32 12 . . Total Damage 4984 | . . . . . . . . . . 101 . 399 1584 755 1717 428 . . Kills 32 | . . . . . . . . . . . . 3 10 9 7 3 . . Allies Corrupted . | . . . . . . . . . . . . . . . . . . . Allies Melted 2 | . . . . . . . . . . . . . 1 . 1 . . . Intel | -11 -10 -10 -10 -9 -8 -7 -7 -7 -7 -6 -6 -6 -6 -6 -5 -5 -5 -5 ------- Run | Scr Mat Min Exi Min Mat Fac Low Low Zio Pro Fac Gar Fac Gar Fac Upp Upp Zhi Robot Analysis Total 4 | . . . . . . . . . . . . . . . . . . 4 Derelict Logs Recovered 8 | . . . . . . . 1 1 2 . . . . . . 3 1 . Drone Launches 1 | . . . . . . . . . 1 . . . . . . . . . Drone Recoveries 1 | . . . . . . . . . 1 . . . . . . . . . Decoded 0b10 Intel 43 | . . . . . . . . . . . 18 25 . . . . . . Traps 37 | . . . . . . . . . . . 16 21 . . . . . . Emergency Access 4 | . . . . . . . . . . . 1 3 . . . . . . Garrisons 1 | . . . . . . . . . . . 1 . . . . . . . Exits 1 | . . . . . . . . . . . . 1 . . . . . . Exploration | -11 -10 -10 -10 -9 -8 -7 -7 -7 -7 -6 -6 -6 -6 -6 -5 -5 -5 -5 ------------- Run | Scr Mat Min Exi Min Mat Fac Low Low Zio Pro Fac Gar Fac Gar Fac Upp Upp Zhi Turns Passed 21368 | 72 220 72 383 342 818 3125 1092 796 2192 392 763 2335 1126 1675 2289 662 2023 991 Spaces Moved 11545 | 62 197 62 288 128 381 1584 606 496 1408 179 464 1251 591 885 1460 473 740 290 Core 27 | 4 . . . . . . . . . . . . . . . . 23 . Treads . | . . . . . . . . . . . . . . . . . . . Legs 548 | . . . . . . . . . . . . . . . . . 258 290 Wheels 10970 | 58 197 62 288 128 381 1584 606 496 1408 179 464 1251 591 885 1460 473 459 . Hover . | . . . . . . . . . . . . . . . . . . . Flight . | . . . . . . . . . . . . . . . . . . . Fastest Speed 50 | 50 100 100 100 190 190 85 115 145 145 145 145 100 145 100 100 130 50 280 Average Speed 156 | 96 100 100 125 190 190 136 158 145 150 145 145 149 155 159 137 130 245 311 Slowest Speed 2000 | 100 100 100 190 190 190 190 175 205 160 145 145 160 160 160 160 130 2000 360 Overloaded Moves . | . . . . . . . . . . . . . . . . . . . Propulsion Burnouts . | . . . . . . . . . . . . . . . . . . . Robots Hopped . | . . . . . . . . . . . . . . . . . . . Cave-ins Triggered 1 | . . . . . . . . . . . . . . . . . . 1 Exploration Rate (%) 49 | 4 38 18 61 28 28 26 79 67 86 47 13 82 19 71 22 69 74 99 Regions Visited 18 Branch Regions 10 Pre-discovered Areas 5 | . . . . . . . . . . . . . . . . 2 . 3 Known Exits Taken 7 | . . . . . 1 . 1 . 1 1 1 . 1 . 1 . . . Unknown Exits Taken 9 | 1 1 1 1 1 . 1 . 1 . . . . . . . 1 1 . Scrap Searched 16 | . . . . . . . 3 2 4 . . . . . . 3 4 . Spaces Dug 43 | . . . . . . 4 . . . . 8 2 21 . 7 . . 1 Terrain Destroyed 252 | . . . . . 3 12 9 . . . 8 5 21 43 8 9 110 24 Melee 26 | . . . . . . 4 . . . . 8 2 4 . 7 . . 1 Projectile 12 | . . . . . . . 9 . . . . 2 . . 1 . . . AOE 211 | . . . . . 3 8 . . . . . . 17 43 . 9 108 23 Terrain Rammed . | . . . . . . . . . . . . . . . . . . . Walls Destroyed . | . . . . . . . . . . . . . . . . . . . Machines Disabled . | . . . . . . . . . . . . . . . . . . . Actions | -11 -10 -10 -10 -9 -8 -7 -7 -7 -7 -6 -6 -6 -6 -6 -5 -5 -5 -5 --------- Run | Scr Mat Min Exi Min Mat Fac Low Low Zio Pro Fac Gar Fac Gar Fac Upp Upp Zhi Total 14022 | 71 213 70 311 227 454 2275 680 533 1492 299 535 1641 743 1101 1675 500 857 345 Wait 904 | . 2 3 . 99 . 364 15 2 4 115 30 122 60 32 55 1 . . Move 11527 | 61 196 61 287 127 380 1583 605 495 1407 178 463 1250 591 884 1459 472 739 289 Hop . | . . . . . . . . . . . . . . . . . . . Pick Up 320 | 5 6 4 21 . 25 48 16 1 24 . 7 47 7 44 35 2 25 3 Fast Attach 81 | 5 1 . 1 . 4 17 1 . 10 . 1 6 6 1 11 . 12 5 Attach 49 | . . 1 . . 2 6 2 2 2 . 3 4 1 1 11 5 4 5 Detach 28 | . . . . . 1 5 . . 8 . . 3 1 1 4 . 1 4 Swap 148 | . 1 . . 1 8 27 3 1 11 . 3 15 20 22 25 2 5 4 Drop 209 | . 1 . 2 . 20 52 7 . 26 . 7 51 6 12 16 . 6 3 Fire 478 | . 6 1 . . 14 136 31 21 . 6 . 57 30 37 36 18 65 20 Melee 67 | . . . . . . 19 . . . . 13 2 4 2 17 . . 10 Ram 5 | . . . . . . . . . . . . . 1 . 4 . . . Kick . | . . . . . . . . . . . . . . . . . . . Crush . | . . . . . . . . . . . . . . . . . . . Escape Stasis 181 | . . . . . . 8 . . . . 8 84 16 64 . . . 1 Rewire 25 | . . . . . . 10 . 11 . . . . . 1 2 . . 1 Trap . | . . . . . . . . . . . . . . . . . . . Miscellaneous . | . . . . . . . . . . . . . . . . . . . Route ------- -11/Scrapyard -10/Materials (discovered 2 exits: [*Mat] / [*Min]) -10/Mines -10/Exiles -9/Mines -8/Materials (discovered 2 exits: *Fac / Sto) -7/Factory -7/Lower Caves -7/Lower Caves (discovered 2 exits: Fac / *Zio) -7/Zion (discovered 2 exits: Dee / *Pro) -6/Proximity Caves -6/Factory (discovered 4 exits: Fac x2 / Ext / Gar) -6/Garrison (discovered 3 exits: *Fac x3) -6/Factory (discovered 6 exits: Fac x4 / *Ext / Gar) -6/Garrison (discovered 3 exits: *Fac x3) -5/Factory (discovered 2 exits: [Fac] / *Upp) -5/Upper Caves -5/Upper Caves -5/Zhirov (discovered 1 exit: [*Pro]) History --------- Turn | Location | Event 2 | -11/Scrapyard | Met Revision 17 29 | -11/Scrapyard | Discovered new exit (range 15) 73 | -11/Scrapyard | Entered Materials 156 | -10/Materials | Discovered new exit (range 15) 187 | -10/Materials | Met 8R-AWN 192 | -10/Materials | Discovered new exit (range 16) 293 | -10/Materials | Entered Mines 294 | -10/Mines | Followed 8R-AWN into the Mines 295 | -10/Mines | Assembled infested the area 300 | -10/Mines | Assisted by a Guerilla fighting off Assembled 314 | -10/Mines | Build established: Mutant 357 | -10/Mines | Discovered new exit (range 5) 365 | -10/Mines | Entered Exiles 390 | -10/Exiles | Welcomed by 8R-AWN 406 | -10/Exiles | Met EX-HEX 436 | -10/Exiles | Met EX-BIN 448 | -10/Exiles | Aligned with FarCom system 449 | -10/Exiles | Given EX-Vault access code 473 | -10/Exiles | Opened EX-Vault 480 | -10/Exiles | Found Longsword +1 500 | -10/Exiles | Warned to stay clear of 0b10 Research branches 529 | -10/Exiles | Met EX-DEC 723 | -10/Exiles | Discovered new exit (range 15) 748 | -10/Exiles | Left Exiles lab with Longsword +1 748 | -10/Exiles | Entered Mines 862 | -9/Mines | Build established: Hauler-Mutant 1033 | -9/Mines | Discovered new exit (range 15) 1090 | -9/Mines | Entered Materials 1090 | -8/Materials | Evolved 4 slots: Utility x4 1498 | -8/Materials | Identified exit to Storage 1588 | -8/Materials | Build established: Hauler-Skirmisher 1770 | -8/Materials | Discovered new exit (range 20) 1806 | -8/Materials | Identified exit to Factory 1908 | -8/Materials | Entered Factory 1908 | -7/Factory | Evolved 2 slots: Propulsion x2 2381 | -7/Factory | Fabricated Med. Insulated Plating (x1) 3039 | -7/Factory | Fabricated Huge Storage Unit? 3265 | -7/Factory | Build established: Hauler-Mutant 3580 | -7/Factory | Build established: Hauler-Skirmisher 4031 | -7/Factory | Lost 5 parts (1n3u1w) 4350 | -7/Factory | Fabricated Huge Storage Unit? 4450 | -7/Factory | Build established: Assassin 4988 | -7/Factory | Discovered new exit (range 8) 5033 | -7/Factory | Entered Lower Caves 5503 | -7/Lower Caves | Identified exit to Lower Caves 5551 | -7/Lower Caves | Build established: Hauler-Mutant 5879 | -7/Lower Caves | Core integrity fell below 50% 5886 | -7/Lower Caves | Attracted the attention of an 0b10 checkpoint 6125 | -7/Lower Caves | Entered another Lower Caves area 6126 | -7/Lower Caves | Identified exit to Factory 6201 | -7/Lower Caves | Attracted the attention of an 0b10 checkpoint 6375 | -7/Lower Caves | Encountered a Warlord checkpoint 6535 | -7/Lower Caves | Spotted B-75 Beast 6636 | -7/Lower Caves | Learned Factory stockpile data 6662 | -7/Lower Caves | Discovered new exit (range 7) 6791 | -7/Lower Caves | Attacked by a delusional Derelict stockpiling Unaware 6921 | -7/Lower Caves | Entered Zion 6921 | -7/Zion | Accompanied by 1 ally 6998 | -7/Zion | System corruption cleaned by Quarantine Array 7068 | -7/Zion | Found Prototype Launcher 7074 | -7/Zion | Identified Rocket Array 7346 | -7/Zion | Identified exit to Deep Caves 7346 | -7/Zion | Identified exit to Proximity Caves 7439 | -7/Zion | Received a visual enhancement algorithm 8014 | -7/Zion | Given the Hacking Drone Bay 8017 | -7/Zion | Found Prototype Device 8018 | -7/Zion | Identified Hacking Drone Bay 8463 | -7/Zion | Rebuked by Imprinter 8626 | -7/Zion | Found Relay Coupler [Programmer] 8628 | -7/Zion | Found Relay Coupler [Programmer] 8631 | -7/Zion | Found Relay Coupler [Programmer] 8644 | -7/Zion | Found Relay Coupler [Programmer] 8646 | -7/Zion | Found Relay Coupler [Programmer] 8721 | -7/Zion | Found Prototype Hackware 8721 | -7/Zion | Identified Exp. Hacking Suite 8735 | -7/Zion | Found Prototype Processor 8735 | -7/Zion | Identified Exp. Melee Analysis Suite 8739 | -7/Zion | Found Prototype Processor 8739 | -7/Zion | Identified Exp. Armor Integrity Analyzer 8748 | -7/Zion | Found Prototype Processor 8748 | -7/Zion | Identified Exp. Core Analyzer 8775 | -7/Zion | Found Exp. Armor Integrity Analyzer 9113 | -7/Zion | Entered Proximity Caves 9113 | -6/Proximity Caves | Accompanied by 1 ally 9202 | -6/Proximity Caves | Attracted the attention of an 0b10 checkpoint 9505 | -6/Proximity Caves | Entered Factory 9505 | -6/Factory | Evolved 2 slots: Power x1, Utility x1 9506 | -6/Factory | Identified exit to Factory 9506 | -6/Factory | Identified exit to Extension 9678 | -6/Factory | Repaired Arm. Huge Wheel 9830 | -6/Factory | Build established: Hauler-Assassin 9989 | -6/Factory | Fabricated Coil Gun? 10247 | -6/Factory | Identified exit to Garrison 10268 | -6/Factory | Entered Garrison 10325 | -6/Garrison | Triggered checkpoint 10655 | -6/Garrison | Build established: Hauler-Skirmisher 10714 | -6/Garrison | Identified exit to Factory 10899 | -6/Garrison | Triggered checkpoint 11191 | -6/Garrison | Discovered exit to Factory (range 20) 11232 | -6/Garrison | Installed Relay Interface Framework 11268 | -6/Garrison | Triggered checkpoint 11313 | -6/Garrison | Garrison Relay disabled 11414 | -6/Garrison | Triggered checkpoint 11421 | -6/Garrison | Triggered checkpoint 11625 | -6/Garrison | Build established: Bothacker-Mutant 11774 | -6/Garrison | Discovered exit to Factory (range 14) 11824 | -6/Garrison | Triggered checkpoint 11929 | -6/Garrison | Garrison Relay disabled 12122 | -6/Garrison | Build established: Bothacker-Skirmisher 12234 | -6/Garrison | Triggered checkpoint 12261 | -6/Garrison | Garrison Relay disabled 12603 | -6/Garrison | Entered Factory 12603 | -6/Factory | Accompanied by 3 allies 12632 | -6/Factory | Build established: Bothacker-Assassin 12687 | -6/Factory | Lost 3 parts (2p1u) 12895 | -6/Factory | Repaired Arm. Huge Wheel 12944 | -6/Factory | Build established: Bothacker-Mutant 12953 | -6/Factory | First assault squad dispatched 12997 | -6/Factory | Spotted B-75 Beast 13047 | -6/Factory | Discovered exit to Extension (range 6) 13661 | -6/Factory | Cargo convoy interrupted 13729 | -6/Factory | Identified exit to Garrison 13729 | -6/Factory | Entered Garrison 13768 | -6/Garrison | Triggered checkpoint 13784 | -6/Garrison | Garrison Relay disabled 13983 | -6/Garrison | Triggered checkpoint 14018 | -6/Garrison | Destroyed 9 combat bots 14051 | -6/Garrison | Triggered checkpoint 14053 | -6/Garrison | Triggered checkpoint 14143 | -6/Garrison | Triggered checkpoint 14261 | -6/Garrison | Discovered exit to Factory (range 10) 14507 | -6/Garrison | Discovered exit to Factory (range 14) 14676 | -6/Garrison | Triggered checkpoint 14717 | -6/Garrison | Garrison Relay disabled 14752 | -6/Garrison | Discovered exit to Factory (range 22) 14802 | -6/Garrison | Expanded RIF knowledge: Alert ID Control 14978 | -6/Garrison | Triggered checkpoint 15059 | -6/Garrison | Garrison Relay disabled 15404 | -6/Garrison | Entered Factory 15404 | -5/Factory | Accompanied by 2 allies 15404 | -5/Factory | Evolved 2 slots: Utility x2 16120 | -5/Factory | Found Prototype Device 16120 | -5/Factory | Identified Active Sensor Suite 16132 | -5/Factory | Discovered new exit (range 30) 16300 | -5/Factory | Fabricated Humpback? 16875 | -5/Factory | Build established: Skirmisher 16879 | -5/Factory | Discovered new exit (range 8) 16890 | -5/Factory | Identified exit to Upper Caves 17054 | -5/Factory | Cargo convoy interrupted 17123 | -5/Factory | System corruption reached 10% 17419 | -5/Factory | Build established: Bothacker-Mutant 17693 | -5/Factory | Entered Upper Caves 17758 | -5/Upper Caves | Attracted the attention of an 0b10 checkpoint 17917 | -5/Upper Caves | Lost 3 parts (2u1w) 18057 | -5/Upper Caves | Spotted B-75 Beast 18166 | -5/Upper Caves | Learned location of Armory (-4) 18201 | -5/Upper Caves | Discovered new exit (range 7) 18355 | -5/Upper Caves | Entered another Upper Caves area 18469 | -5/Upper Caves | Spotted B-75 Beast 18549 | -5/Upper Caves | Attracted the attention of an 0b10 outpost 18636 | -5/Upper Caves | Attracted the attention of an 0b10 checkpoint 18641 | -5/Upper Caves | Core integrity fell below 50% 19132 | -5/Upper Caves | System corruption reached 30% 19163 | -5/Upper Caves | Destroyed B-75 Beast 19191 | -5/Upper Caves | Lost 4 parts (1p1n1u1w) 19422 | -5/Upper Caves | Learned 4 Factory zone layouts 20151 | -5/Upper Caves | Discovered new exit (range 15) 20378 | -5/Upper Caves | Entered Zhirov 20378 | -5/Zhirov | Discovered new exit (range 3) 20429 | -5/Zhirov | Met Zhirov 20490 | -5/Zhirov | Learned location of Quarantine (-2) 20490 | -5/Zhirov | Learned location of Testing (-3) 20490 | -5/Zhirov | Learned location of Command (-1) 20544 | -5/Zhirov | Zhirov requested help retrieving the SGEMP Prototype 20605 | -5/Zhirov | Found Alien Artifact 20605 | -5/Zhirov | Identified Integrated Dissipator 20605 | -5/Zhirov | Installed Integrated Dissipator, increased core heat dissipation (+20) 20644 | -5/Zhirov | Found Alien Artifact 20931 | -5/Zhirov | Attacked by Zhirov 20938 | -5/Zhirov | Core integrity fell below 20% 20945 | -5/Zhirov | Zhirov warped through subspace 20954 | -5/Zhirov | Zhirov detonated his lab 20954 | -5/Zhirov | Cloak Generator disabled 20985 | -5/Zhirov | Lost 3 parts (1n1u1w) 21369 | -5/Zhirov | Crushed by falling debris 21369 | -5/Zhirov | Smashed by cave-in Last Messages --------------- 21072_ The unstable cave ceiling collapses. 21083_ System corrupted: Component data lost. 21091_ The unstable cave ceiling collapses. 21101_ System corrupted: Component data lost. 21121_ DFQ#MSIB6PI>NB,9Z7>Z8WEM MWF=BKBE&7B 21138_ System corrupted: Energy discharge (-128). 21153_ System corrupted: Energy discharge (-81). 21168_ S67ML,XPLC#KEHDHFJVXW#X 21199_ System corrupted: Component data lost. 21230_ I 21264_ System corrupted: Substantial component data lost. 21279_ D<2=TA<= 8FV#YWWSDYU